Cogmind - Beta 14 @@@ ROGUE MODE // 2024.09.01 @ 18:30:59 Player: Some Pennies Result: Self-destructed Performance ------------- Evolutions (3) 1500 Regions Visited (6) 1200 Robots Destroyed (37) 185 Value Destroyed (1460) 1460 Prototype IDs (12) 240 Alien Tech Used (0) 0 Bonus (409) 409 TOTAL SCORE: 4994 Bonus ------- High Alert Combat Kills 89 Follower Combat Kills 130 Entered Garrisons 200 Friendly Fire -10 Cogmind --------- Core Integrity 700/700 Matter 36/300 Energy 161/265 System Corruption 0% Temperature Cool (3) Movement Flying (40) Location -7/Factory Parts ------- > --- POWER (1) -------- Improved Ion Engine > --- PROPULSION (4) --- Flightbrick > --- UTILITY (6+3) ---- Improved Heat Sink Medium Storage Unit Improved Sensor Array Transmission Jammer > --- WEAPON (2) ------- Light Assault Rifle Light Assault Rifle > --- INVENTORY (10) --- Ion Engine Faulty Improved Cesium-ion Thruster Improved Cesium-ion Thruster Transmission Jammer Multitool Fusion Bomb Trap Fusion Bomb Trap Fusion Bomb Trap Fusion Bomb Trap Tesla Bomb Trap Peak State ------------ > --- POWER ------------ Improved Ion Engine > --- PROPULSION ------- Flightbrick > --- UTILITY ---------- Improved Heat Sink Medium Storage Unit Improved Sensor Array Transmission Jammer > --- WEAPON ----------- Light Assault Rifle Light Assault Rifle > --- INVENTORY -------- Ion Engine Improved Cesium-ion Thruster Improved Cesium-ion Thruster Transmission Jammer Multitool Fusion Bomb Trap Fusion Bomb Trap Fusion Bomb Trap Fusion Bomb Trap Tesla Bomb Trap [Rating: 53] Favorites ----------- Power Ion Engine Engine Ion Engine Power Core Light Nuclear Core Propulsion Light Treads Treads Light Treads Leg Aluminum Leg Wheel Subdweller Monowheel Flight Unit Flightbrick Utility Huge Storage Unit Device Seismic Detector Storage Huge Storage Unit Protection Reactive Plating Weapon Subdweller Laser Energy Gun Subdweller Laser Energy Cannon Subdweller Beam Cannon Ballistic Gun Light Assault Rifle Ballistic Cannon Slug Cannon Launcher Subdweller Shrapnel Launcher Special Weapon Mining Laser Build | -11 -10 -10 -10 -8 -8 -7 ------- Run | Yrd Mat Min Sub Mat Gar Fac Slots Evolved 6 | . . . . 4 . 2 Power . | . . . . . . . Propulsion 2 | . . . . 2 . . Utility 4 | . . . . 2 . 2 Weapon . | . . . . . . . Parts Attached 88 | 5 1 4 23 6 47 2 Power 6 | . . . . 1 5 . Engine 4 | . . . . 1 3 . Core 2 | . . . . . 2 . Reactor . | . . . . . . . Propulsion 18 | 2 . . 6 2 8 . Treads 9 | 2 . . 3 . 4 . Leg 3 | . . . . 1 2 . Wheel 5 | . . . 3 1 1 . Hover . | . . . . . . . Flight 1 | . . . . . 1 . Utility 30 | 2 1 4 5 3 13 2 Device 16 | 2 . 2 3 2 5 2 Storage 4 | . 1 2 . . 1 . Processor . | . . . . . . . Hackware . | . . . . . . . Protection 10 | . . . 2 1 7 . Artifact . | . . . . . . . Weapon 34 | 1 . . 12 . 21 . Energy Gun 23 | 1 . . 7 . 15 . Energy Cannon 1 | . . . 1 . . . Ballistic Gun 6 | . . . 2 . 4 . Ballistic Cannon 1 | . . . . . 1 . Launcher 1 | . . . . . 1 . Special Weapon 2 | . . . 2 . . . Impact Weapon . | . . . . . . . Slashing Weapon . | . . . . . . . Piercing Weapon . | . . . . . . . Special Melee Weapon . | . . . . . . . Unidentified Prototypes 1 | . . 1 . . . . Parts Lost 20 | . . . 2 2 16 . Power 4 | . . . . 1 3 . Propulsion 11 | . . . 2 1 8 . Utility 3 | . . . . . 3 . Weapon 2 | . . . . . 2 . Highest Loss Streak 8 | . . . 1 1 8 . To Critical Strikes . | . . . . . . . Average Slot Usage (%) 94 | . 100 98 99 95 82 41 Engine 11 | . 14 14 14 7 7 6 Treads 21 | . 28 28 25 15 10 . Leg 2 | . . . . 9 9 . Wheel 2 | . . . 2 9 5 . Device 12 | . 14 13 10 18 13 10 Storage 12 | . 14 13 14 9 8 6 Protection 4 | . . . 4 9 10 . Energy Gun 13 | . 14 14 15 18 12 . Energy Cannon 2 | . . . 5 . . . Ballistic Gun 7 | . 14 14 7 . 3 12 Peak Build Rating 53 | 8 8 19 19 28 44 53 Average Rating 18 | 6 8 8 15 26 31 47 On Entrance 17 | 6 8 8 10 18 27 44 Naked Turns . | . . . . . . . Heaviest Build 116 | 14 89 89 100 98 116 22 Greatest Support 60 | 40 40 40 40 20 60 24 Greatest Overweight (x) 10 | . 2 2 4 4 10 . Average Overweight (x) 2 | . 1 1 2 4 2 . Largest Inventory Capacity 25 | 8 25 25 25 25 25 10 Average Capacity 23 | 8 24 23 25 25 22 10 Most Carried 25 | 8 14 16 25 24 25 10 Average Carried 20 | 4 12 13 23 20 21 8 Final Capacity 25 | 8 25 25 25 25 10 10 Final Carried 25 | 8 14 16 25 22 7 10 Class Distribution -------------------- 68% | Mutant 31% | Scavenger-Mutant Dominant Class ---------------- Mutant | -10/Materials Mutant | -10/Mines Mutant | -10/Subcaves Scavenger-Mutant | -8/Materials Scavenger-Mutant | -8/Garrison Scavenger-Mutant | -7/Factory Resources | -11 -10 -10 -10 -8 -8 -7 ----------- Run | Yrd Mat Min Sub Mat Gar Fac Matter Collected 1529 | 257 96 14 622 80 460 . Remotely . | . . . . . . . Salvage Created 1683 | 149 210 . 423 257 644 . Parts 79 | 11 11 . 19 5 33 . Haulers Intercepted . | . . . . . . . Recyclers Shooed 1 | 1 . . . . . . Parts Field Recycled . | . . . . . . . Retrieved Matter . | . . . . . . . Parts Self-Destructed 12 | . . . 12 . . . Prevented . | . . . . . . . Kills | -11 -10 -10 -10 -8 -8 -7 ------- Run | Yrd Mat Min Sub Mat Gar Fac Combat Hostiles Destroyed 32 | . 6 . 5 5 16 . Guns 21 | . 6 . 2 5 8 . Cannons 2 | . . . 2 . . . AOE 8 | . . . . . 8 . Classes Destroyed 8 | 3 2 . 2 1 . . Worker 1 | 1 . . . . . . Tunneler 3 | 3 . . . . . . Recycler 1 | 1 . . . . . . Swarmer 7 | . 3 . . . 4 . Grunt 16 | . 3 . . 4 9 . Sentry 4 | . . . . 1 3 . Artisan 1 | . . . 1 . . . Subdweller 5 | . . . 5 . . . Best Kill Streak 8 | 3 3 . 2 5 8 . Combat Bots Only 8 | . 3 . 2 5 8 . Max Kills in Single Turn 3 | 1 1 . 1 1 3 . Gunslinging . | . . . . . . . Exploded 3 | . . . . . 3 . Melee . | . . . . . . . Uniques/NPCs Destroyed . | . . . . . . . Combat | -11 -10 -10 -10 -8 -8 -7 -------- Run | Yrd Mat Min Sub Mat Gar Fac Hostile Shots Fired 290 | . 28 . 25 33 179 25 Missed 96 | . 7 . 12 12 48 17 Damage Taken 3650 | . 241 . 448 326 2526 109 Core 552 | . 55 . 66 51 380 . Absorbed by Shields 142 | . . . . . 142 . Ignored by Resistances 154 | . . . . . 154 . Core Remaining (%) 57 | 100 . . 51 . 21 . Volleys Fired 208 | 8 29 1 57 16 95 2 Largest 2 | 2 2 2 2 2 2 2 Hottest 140 | 70 70 70 140 120 129 40 Shots Fired 354 | 16 58 2 98 32 144 4 Gun 323 | 16 58 2 77 32 134 4 Cannon 17 | . . . 12 . 5 . Launcher 5 | . . . . . 5 . Special 9 | . . . 9 . . . Kinetic 125 | 8 29 1 27 . 56 4 Thermal 188 | 8 29 1 59 32 59 . Explosive . | . . . . . . . Electromagnetic 41 | . . . 12 . 29 . Robot Hit Streak 26 | 6 8 2 26 8 12 1 Robot Miss Streak 6 | 1 6 . 3 3 3 1 Penetration Max . | . . . . . . . Secondary Targets 1 | . . . . . 1 . Max Gunslinging Chain 1 | . . . . . 1 . Shots Hit Robots 219 | 11 29 2 70 21 84 2 Core Hits 92 | 9 12 1 19 10 40 1 Critical Kills 2 | . . . 1 1 . . Critical Parts Destroyed . | . . . . . . . Critical Strikes 7 | . 1 . 1 1 4 . Burn 4 | . 1 . . . 3 . Meltdown 1 | . . . 1 . . . Destroy 1 | . . . . 1 . . Corrupt 1 | . . . . . 1 . Melee Attacks . | . . . . . . . Impact . | . . . . . . . Slashing . | . . . . . . . Piercing . | . . . . . . . Sneak Attacks . | . . . . . . . Combat Hostiles . | . . . . . . . Follow-up Attacks . | . . . . . . . Damage Inflicted 4319 | 130 305 19 1001 439 2406 19 Guns 3110 | 130 305 19 752 439 1446 19 Cannons 321 | . . . 226 . 95 . Explosions 881 | . . . 23 . 858 . Melee . | . . . . . . . Ramming 7 | . . . . . 7 . Kinetic 1749 | 55 107 6 201 . 1361 19 Thermal 2123 | 75 198 13 694 439 704 . Explosive . | . . . . . . . Electromagnetic 440 | . . . 106 . 334 . Impact . | . . . . . . . Slashing . | . . . . . . . Piercing . | . . . . . . . Highest Corruption . | . . . . . . . Average Corruption . | . . . . . . . Corruption Purged . | . . . . . . . Corruption Blocked . | . . . . . . . Overload Shots . | . . . . . . . Overflow Damage 18 | . . . . . 18 . Projectiles . | . . . . . . . Explosions 18 | . . . . . 18 . Melee . | . . . . . . . Knockbacks 2 | . . . . . 2 . Impact . | . . . . . . . Kinetic 2 | . . . . . 2 . Secondary . | . . . . . . . Self-Inflicted Damage 78 | . . . . . 78 . Shots 2 | . . . . . 2 . Rammed 1 | . . . . . 1 . Targets Rammed 1 | . . . . . 1 . Kicked . | . . . . . . . Crushed . | . . . . . . . Highest Temperature 423 | 60 203 30 233 171 423 . Average Temperature 87 | 22 62 18 74 62 131 . Received Heat Transfer 1602 | . 120 . 105 189 1188 . Effects 4 | . . . . . 4 . Shutdowns 1 | . . . . . 1 . Short Circuit 1 | . . . . . 1 . Damage (minor) 1 | . . . . . 1 . Damage (major) 1 | . . . . . 1 . Siege Activations . | . . . . . . . Robots Corrupted . | . . . . . . . Combat Hostiles . | . . . . . . . Parts Fried 2 | . . . . . 2 . Impact Corruptions . | . . . . . . . Robots Melted 1 | . . . 1 . . . Combat Hostiles 1 | . . . 1 . . . Parts Melted 5 | . . . 4 . 1 . Heat Transferred 3705 | 222 666 37 1298 525 957 . Parts Sabotaged . | . . . . . . . Parts Stolen . | . . . . . . . Parts Stripped . | . . . . . . . Power Chain Reactions 4 | . . . 1 . 3 . Alert | -11 -10 -10 -10 -8 -8 -7 ------- Run | Yrd Mat Min Sub Mat Gar Fac Peak Influence 657 | 25 171 5 . 110 657 416 Initial 344 | . 16 5 . . 71 344 Average 245 | 10 27 4 . 38 460 383 Maximum Alert Level 2 | . . . . . 2 2 Low Security (%) 57 | 100 100 100 . 100 18 . Level 1 6 | . . . . . 9 51 Level 2 36 | . . . . . 71 48 Level 3 . | . . . . . . . Level 4 . | . . . . . . . Level 5 . | . . . . . . . High Security . | . . . . . . . Max Security . | . . . . . . . Squads Dispatched 1 | . . . . 1 . . Investigation . | . . . . . . . Extermination . | . . . . . . . Reinforcement 1 | . . . . 1 . . Assault . | . . . . . . . Garrison . | . . . . . . . Intercept . | . . . . . . . Searches Triggered . | . . . . . . . Construction Impeded . | . . . . . . . Haulers Reinforced . | . . . . . . . Active Scanning Responses . | . . . . . . . Cargo Convoy Interrupts . | . . . . . . . Stealth | -11 -10 -10 -10 -8 -8 -7 --------- Run | Yrd Mat Min Sub Mat Gar Fac Distress Signals 1 | . . . . 1 . . Communications Jammed . | . . . . . . . Distress Signals . | . . . . . . . Times Spotted 50 | . 10 . 9 7 18 6 Peak Tracking Total 6 | . 4 . 2 4 6 6 Tactical Retreats 5 | . 1 . . . 3 1 Traps | -11 -10 -10 -10 -8 -8 -7 ------- Run | Yrd Mat Min Sub Mat Gar Fac Traps Triggered 2 | . . . . . 2 . Indirectly . | . . . . . . . Trap Hack Attempts . | . . . . . . . Triggered . | . . . . . . . Disarmed . | . . . . . . . Reprogrammed . | . . . . . . . Reused 1 | . . . . . 1 . Traps Extracted . | . . . . . . . Installed 1 | . . . . . 1 . Triggered 1 | . . . . . 1 . Most Traps Carried 5 | . . . . . 5 5 Machines | -11 -10 -10 -10 -8 -8 -7 ---------- Run | Yrd Mat Min Sub Mat Gar Fac Machines Disabled 7 | . . . 1 . 6 . Max in Single Turn 1 | . . . 1 . 1 . Garrison Relay 1 | . . . . . 1 . Machines Repaired . | . . . . . . . Machines Dismantled . | . . . . . . . Machines Sabotaged . | . . . . . . . Overloaded Fab Kills . | . . . . . . . Hacking | -11 -10 -10 -10 -8 -8 -7 --------- Run | Yrd Mat Min Sub Mat Gar Fac Machines Accessed 7 | . 1 1 2 1 1 1 Terminals 2 | . 1 . . . 1 . Fabricators . | . . . . . . . Repair Stations . | . . . . . . . Recycling Units . | . . . . . . . Scanalyzers 1 | . . . . . . 1 Garrison Access 1 | . . . . 1 . . Total Hacks 23 | . 2 1 13 2 2 3 Successful 18 | . 1 1 13 1 1 1 Failed 5 | . 1 . . 1 1 2 Catastrophic . | . . . . . . . Database Lockouts . | . . . . . . . Manual 2 | . 2 . . . . . Terminals 4 | . 2 . . . 2 . Fabricators . | . . . . . . . Repair Stations . | . . . . . . . Recycling Units . | . . . . . . . Scanalyzers 3 | . . . . . . 3 Garrison Access 2 | . . . . 2 . . Terminal Hacks 15 | . . 1 13 . 1 . Record 12 | . . . 12 . . . Open Door 1 | . . 1 . . . . Emergency Access Points 1 | . . . . . 1 . Derelict Proto ID Bank 1 | . . . 1 . . . Fabricator Hacks . | . . . . . . . Repair Station Hacks . | . . . . . . . Recycling Unit Hacks . | . . . . . . . Scanalyzer 1 | . . . . . . 1 Insert Component 1 | . . . . . . 1 Garrison Access Hacks 1 | . . . . 1 . . Unlock Access 1 | . . . . 1 . . Unauthorized Hacks 1 | . 1 . . . . . Terminals 1 | . 1 . . . . . Skim 1 | . 1 . . . . . Fabricators . | . . . . . . . Repair Stations . | . . . . . . . Recycling Units . | . . . . . . . Scanalyzers . | . . . . . . . Garrison Access . | . . . . . . . Data Cores Recovered . | . . . . . . . Used . | . . . . . . . Hacking Detections 4 | . 1 . . 1 1 1 Full Trace Events . | . . . . . . . Feedback Events . | . . . . . . . Feedback Blocked . | . . . . . . . Robot Schematics Acquired . | . . . . . . . Robots Built . | . . . . . . . Authchips . | . . . . . . . Time . | . . . . . . . Total Robot Build Rating . | . . . . . . . Part Schematics Acquired . | . . . . . . . Parts Built . | . . . . . . . Authchips . | . . . . . . . Time . | . . . . . . . Total Part Build Rating . | . . . . . . . Parts Repaired . | . . . . . . . Time . | . . . . . . . Parts Recycled . | . . . . . . . Recycled Matter . | . . . . . . . Retrieved Matter . | . . . . . . . Retrieved Components . | . . . . . . . Parts Scanalyzed 1 | . . . . . . 1 Part Schematics Acquired . | . . . . . . . Parts Damaged 1 | . . . . . . 1 Bothacking | -11 -10 -10 -10 -8 -8 -7 ------------ Run | Yrd Mat Min Sub Mat Gar Fac Used RIF Installer . | . . . . . . . Robots Hacked . | . . . . . . . Non-combat . | . . . . . . . Combat . | . . . . . . . Robot Hacks Applied . | . . . . . . . Relay Couplers Released 4 | . . . . . 4 . Machine Destruction 4 | . . . . . 4 . Fabnet Peak Effective % . | . . . . . . . Robots Rewired . | . . . . . . . Allies Hacked . | . . . . . . . Hacks Repelled . | . . . . . . . Allies | -11 -10 -10 -10 -8 -8 -7 -------- Run | Yrd Mat Min Sub Mat Gar Fac Total Allies 3 | . . 3 . . . . Largest Group 3 | . . 3 3 . . . Highest-Rated Group 40 | . . 40 40 . . . Highest-Rated Ally 16 | . . 16 16 . . . Total Orders . | . . . . . . . Ally Attacks 51 | . . . 51 . . . Total Damage 358 | . . . 358 . . . Kills 5 | . . . 5 . . . Allies Corrupted . | . . . . . . . Allies Melted . | . . . . . . . Intel | -11 -10 -10 -10 -8 -8 -7 ------- Run | Yrd Mat Min Sub Mat Gar Fac Robot Analysis Total . | . . . . . . . Derelict Logs Recovered 2 | . . . 2 . . . Drone Launches . | . . . . . . . Drone Recoveries . | . . . . . . . Exploration | -11 -10 -10 -10 -8 -8 -7 ------------- Run | Yrd Mat Min Sub Mat Gar Fac Turns Passed 4639 | 109 582 409 2104 126 1245 64 Spaces Moved 1752 | 46 157 129 682 42 565 131 Core 8 | . . . . . 8 . Treads 844 | 46 157 129 482 . 30 . Legs 64 | . . . . . 64 . Wheels 465 | . . . 200 42 223 . Hover . | . . . . . . . Flight 371 | . . . . . 240 131 Fastest Speed 40 | 160 160 160 150 150 40 40 Average Speed 213 | 160 313 303 270 150 144 40 Slowest Speed 820 | 160 320 320 320 150 820 40 Overloaded Moves . | . . . . . . . Propulsion Burnouts . | . . . . . . . Robots Hopped . | . . . . . . . Cave-ins Triggered . | . . . . . . . Exploration Rate (%) 23 | 4 34 16 46 10 48 6 Regions Visited 6 Branch Regions 2 Pre-discovered Areas . | . . . . . . . Known Exits Taken 1 | . . . . 1 . . Unknown Exits Taken 4 | 1 1 1 1 . . . Scrap Searched 3 | . . . 3 . . . Spaces Dug 17 | . . . . . 17 . Terrain Destroyed 29 | . . . 3 . 26 . Melee . | . . . . . . . Projectile 2 | . . . 1 . 1 . AOE 27 | . . . 2 . 25 . Terrain Rammed . | . . . . . . . Walls Destroyed . | . . . . . . . Machines Disabled . | . . . . . . . Actions | -11 -10 -10 -10 -8 -8 -7 --------- Run | Yrd Mat Min Sub Mat Gar Fac Total 2296 | 67 196 146 834 72 843 138 Wait 111 | . 3 . 25 6 77 . Move 1746 | 45 156 128 681 42 563 131 Hop . | . . . . . . . Pick Up 73 | 5 6 9 28 2 20 3 Fast Attach 23 | 1 . 4 . . 16 2 Attach 14 | . . . 2 5 7 . Detach 1 | . . 1 . . . . Swap 51 | 4 1 . 21 1 24 . Drop 49 | 4 1 3 20 . 21 . Fire 208 | 8 29 1 57 16 95 2 Melee . | . . . . . . . Ram . | . . . . . . . Kick . | . . . . . . . Crush 1 | . . . . . 1 . Escape Stasis 18 | . . . . . 18 . Rewire . | . . . . . . . Trap 1 | . . . . . 1 . Miscellaneous . | . . . . . . . Route ------- -11/Scrapyard -10/Materials -10/Mines -10/Subcaves -8/Materials (discovered 3 exits: Fac x2 / Gar) -8/Garrison (discovered 2 exits: *Fac x2) -7/Factory (discovered 4 exits: Fac x4) History --------- Turn | Location | Event 6 | -11/Scrapyard | Discovered new exit (range 3) 110 | -11/Scrapyard | Entered Materials 312 | -10/Materials | Build established: Mutant 628 | -10/Materials | Discovered new exit (range 15) 692 | -10/Materials | Entered Mines 699 | -10/Mines | Assisted by bots powering up and referring to "LRC-V3" 705 | -10/Mines | Met a Derelict bent on vengeance 793 | -10/Mines | Found the Drone Emporium 833 | -10/Mines | Found Prototype Device 833 | -10/Mines | Identified Decoy Drone Bay 1088 | -10/Mines | Discovered new exit (range 3) 1101 | -10/Mines | Entered Subcaves 1101 | -10/Subcaves | Accompanied by 3 allies 1366 | -10/Subcaves | Visited Clippyterm 1376 | -10/Subcaves | Learned 40 Factory zone layouts 1521 | -10/Subcaves | Shifting Twisted Machinery released Sub. Power Source 1546 | -10/Subcaves | Shifting Twisted Machinery released Barrage Gun 2027 | -10/Subcaves | Learned 4 Materials zone layouts 2126 | -10/Subcaves | Learned location of 1 exit from Materials 2145 | -10/Subcaves | Visited 4L-MR0's lab 2188 | -10/Subcaves | Found Flightbrick 2333 | -10/Subcaves | Ambushed by angry Subdweller bent on revenge 3135 | -10/Subcaves | Shifting Twisted Machinery released Mak. System Restoration Module 3163 | -10/Subcaves | Discovered new exit (range 10) 3173 | -10/Subcaves | Shifting Twisted Machinery released Sub. Power Source 3205 | -10/Subcaves | Entered Materials 3205 | -8/Materials | Evolved 4 slots: Propulsion x2, Utility x2 3206 | -8/Materials | Identified exit to Factory 3331 | -8/Materials | Identified exit to Garrison 3331 | -8/Materials | Entered Garrison 3511 | -8/Garrison | Build established: Scavenger-Mutant 3559 | -8/Garrison | Triggered checkpoint 3566 | -8/Garrison | Triggered checkpoint 3596 | -8/Garrison | Destroyed 8 combat bots 3683 | -8/Garrison | Triggered checkpoint 3735 | -8/Garrison | Garrison Relay disabled 3901 | -8/Garrison | Lost 5 parts (3n2w) 4236 | -8/Garrison | Discovered exit to Factory (range 10) 4264 | -8/Garrison | Spotted B-75 Beast 4264 | -8/Garrison | Spotted B-75 Beast 4389 | -8/Garrison | Core integrity fell below 50% 4401 | -8/Garrison | Attempted to access garrison exit controls, blocked by remote lockdown 4406 | -8/Garrison | Attached Flightbrick, gained temporary slots: Utility x3 4412 | -8/Garrison | Lost 8 parts (2p4n2u) 4571 | -8/Garrison | Discovered exit to Factory (range 14) 4576 | -8/Garrison | Entered Factory 4576 | -7/Factory | Evolved 2 slots: Utility x2 4577 | -7/Factory | Identified exit to Factory 4640 | -7/Factory | Self-destructed Last Messages --------------- PARAMETERS=UTILITY+2 LOCATION=FACTORY GOAL=ESCAPE Loading 40 Factory zones... 04582_ Connecting with Scanalyzer... >>Insert(Multitool) Scanning Multitool... Ready to analyze. 04593_ ALERT: All DSF locations entering lockdown mode. 04601_ K-01 Serf pushes Y-54 Guardian. 04604_ Penetrated by Slug. 04607_ K-01 Serf collects debris. 04609_ K-01 Serf cleans the Matter Pump. 04611_ Acquired Prototype Flight Unit. 04612_ K-01 Serf cleans the Matter Pump. 04614_ Acquired Transmission Jammer. 04625_ Acquired Imp. Sensor Array. 04632_ K-01 Serf collects debris. 04632_ Slug penetrates Wall. Map ----- +----------------------------------------------------+ | ??????????? #?# #?# ?????????????? | | ??????????? #?# #?# ?????????????? | | ??????????? #?# #?# ?????????????? | | ??????????? #?# #?# ?????????????? | | ??????????? #?# #?# ?????????????? | | ??????????? #?# #?# ?????????????? | | ## #?# #?# """ ## | | ## ### ### """ ## | | #+#################+#### # ## | | ###+############+ | | | | | | H | | | | | | ######### ###### | | #+#################+#### #???????# #????# | | #?# #####+########????# #????# | | #?# # #????# #????# | | #?# # #????# #????# | | " """ #?# """ """ # #???##+######/ | | " """ #?# """ """ # #???# | | " """ ### """ """ # """ """ #???# | | # # # """ """ #???# | | " """ ### """ """ # """ """ #???# | | " """ #?# """ """ # @ ##### | | " """ #?# """ """ # """ """ /s + | | #?# # """ """ ##### | | #?# # """ """ #???# | | #########?############## #???# | | ???????????????????????##############???# | | ????????????????????????????????????????# | | ????????????????????????????????????????# ] | | ????????????????????????????????????????########## | | ?????????????????????????????????????????????????? | | ?????????????????????????????????????????????????? | | ?????????????????????????????????????????????????? | | ????????????????????????????????################## | | ????????????????????????????????# | | ????????????????????????????????# | | ???????????????????############## | | ???????????????????# # | | ???????????????????# # | | ???????????######### # """""" ## | | ??????????? # # """""" #? | | ??????????? """ # # """""" #? | | ??????????? ""F"" # + """""" #? | | ??????????? "" "" # # """""" ## | | ??????????? # # """""" | | ??????????? # # """""" ##+## | +----------------------------------------------------+ Best States ------------- Heat Dissipation 59 Energy Generation 15 Energy Capacity 265 Matter Stores 326 Matter Capacity 500 Sight Range 16 Robot Scan Range 15 Terrain Scan Density 10 Jamming Range 12 Armor Coverage 300 Resistance: KI 20 Evasion (%) 62 Recoil Reduction 3 Trap Extractor Capacity 4 Item Schematics ----------------- None Robot Schematics ------------------ None Fabricated ------------ Nothing Alien Tech Used ----------------- None Achievements -------------- None Challenges ------------ None Game ------ Seed FlightLatentPower Manual? 0 Play Time 00:38:51 Cumulative 284.0 hours Start 2024.09.01 @ 16:12:42 End 2024.09.01 @ 18:30:59 Sessions 3 Manual Loads 0 Difficulty Rogue Special Mode None Game No. 216 Rogue 211 Adventurer 5 Explorer 0 Win Type - Total 6 Types 4/0/2/0/0/0/0/0/0 Lore% 64 Gallery% 83 Achievement% 68 Wizard Run 0 Options --------- Layout 2 ASCII 0 Keyboard 0 Movement Mouse Keybinds 0 Fullscreen 2 Font 24/Smallcaps Map View 50x44 Zoom Use 0% Tactical HUD 1 Map Filters NONE Filters NONE Steam 1 RUN: dadcbfba-689a-4ba7-8075-c6c2c3582ae1